Cogmind - Beta 12 @@@ ROGUE MODE // 2023.11.05 @ 21:04:45 Player: Tallim Result: Self-destructed Performance ------------- Evolutions (1) 500 Regions Visited (2) 400 Robots Destroyed (8) 40 Value Destroyed (209) 209 Prototype IDs (0) 0 Alien Tech Used (0) 0 Bonus (0) 0 TOTAL SCORE: 1149 Bonus ------- None Cogmind --------- Core Integrity 345/400 Matter 171/300 Energy 98/100 System Corruption 2% Temperature Cool (9) Movement Walking (120) Location -9/Materials Parts ------- > --- POWER (1) -------- (None) > --- PROPULSION (4) --- Aluminum Leg Aluminum Leg > --- UTILITY (2) ------ Heat Sink Small Storage Unit > --- WEAPON (2) ------- Beam Rifle Assault Rifle > --- INVENTORY (8) ---- Light Ion Engine Light Ion Engine Light Treads Improved Heat Sink Medium Storage Unit Small Laser Grenade Launcher Datajack Peak State ------------ > --- POWER ------------ Ion Engine > --- PROPULSION ------- Aluminum Leg Aluminum Leg > --- UTILITY ---------- Heat Sink Small Storage Unit > --- WEAPON ----------- Beam Rifle Assault Rifle > --- INVENTORY -------- Light Ion Engine Light Ion Engine Light Treads Improved Heat Sink Medium Storage Unit Small Laser Grenade Launcher Datajack [Rating: 9] Favorites ----------- Power Ion Engine Engine Ion Engine Propulsion Aluminum Leg Leg Aluminum Leg Utility Small Storage Unit Device Heat Sink Storage Small Storage Unit Weapon EM Pulse Gun Energy Gun EM Pulse Gun Ballistic Gun Assault Rifle Launcher Grenade Launcher Build | -11 -10 -9 ------- Run | Jun Mat Mat Slots Evolved 2 | . . 2 Power . | . . . Propulsion 2 | . . 2 Utility . | . . . Weapon . | . . . Parts Attached 11 | 7 2 2 Power 2 | 2 . . Engine 2 | 2 . . Core . | . . . Reactor . | . . . Propulsion 2 | 2 . . Treads . | . . . Leg 2 | 2 . . Wheel . | . . . Hover . | . . . Flight . | . . . Utility 2 | 1 1 . Device 1 | . 1 . Storage 1 | 1 . . Processor . | . . . Hackware . | . . . Protection . | . . . Artifact . | . . . Weapon 5 | 2 1 2 Energy Gun 3 | 2 . 1 Energy Cannon . | . . . Ballistic Gun 1 | . 1 . Ballistic Cannon . | . . . Launcher 1 | . . 1 Special Weapon . | . . . Impact Weapon . | . . . Slashing Weapon . | . . . Piercing Weapon . | . . . Special Melee Weapon . | . . . Unidentified Prototypes . | . . . Parts Lost 3 | . 1 2 Power 1 | . . 1 Propulsion . | . . . Utility . | . . . Weapon 2 | . 1 1 Highest Loss Streak 1 | . 1 1 To Critical Strikes . | . . . Average Slot Usage (%) 86 | . 90 76 Engine 13 | . 14 11 Leg 26 | . 28 22 Device 7 | . 5 11 Storage 13 | . 14 11 Energy Gun 17 | . 20 9 Ballistic Gun 8 | . 7 11 Naked Turns . | . . . Heaviest Build 16 | 14 15 16 Greatest Support 20 | 20 20 20 Greatest Overweight (x) . | . . . Average Overweight (x) . | . . . Largest Inventory Capacity 8 | 8 8 8 Average Capacity 7 | 7 8 8 Most Carried 8 | 2 8 8 Average Carried 5 | . 5 7 Final Capacity 8 | 8 8 8 Final Carried 8 | 2 8 8 Class Distribution -------------------- 100% | Mutant Dominant Class ---------------- Mutant | -10/Materials Mutant | -9/Materials Resources | -11 -10 -9 ----------- Run | Jun Mat Mat Matter Collected 256 | 163 82 11 Remotely . | . . . Salvage Created 247 | . 141 106 Parts 26 | . 15 11 Haulers Intercepted . | . . . Recyclers Shooed . | . . . Parts Field Recycled . | . . . Retrieved Matter . | . . . Parts Self-Destructed . | . . . Prevented . | . . . Kills | -11 -10 -9 ------- Run | Jun Mat Mat Combat Hostiles Destroyed 5 | . 3 2 Guns 3 | . 3 . AOE 2 | . . 2 Classes Destroyed 5 | . 3 2 Worker 2 | . . 2 Watcher 1 | . 1 . Swarmer 1 | . 1 . Grunt 2 | . 2 . Sentry 2 | . . 2 Best Kill Streak 4 | . 4 3 Combat Bots Only 3 | . 3 2 Max Kills in Single Turn 2 | . 1 2 Gunslinging . | . . . Exploded 1 | . . 1 Melee . | . . . Uniques/NPCs Destroyed . | . . . Combat | -11 -10 -9 -------- Run | Jun Mat Mat Damage Taken 477 | . 198 279 Core 127 | . 72 55 Absorbed by Shields . | . . . Core Remaining (%) 85 | 100 71 . Volleys Fired 24 | . 12 12 Largest 2 | . 2 2 Hottest 80 | . 80 76 Shots Fired 46 | . 23 23 Gun 43 | . 23 20 Cannon . | . . . Launcher 3 | . . 3 Special . | . . . Kinetic 21 | . 9 12 Thermal 4 | . . 4 Explosive 3 | . . 3 Electromagnetic 18 | . 14 4 Robot Hit Streak 6 | . 5 6 Robot Miss Streak 4 | . 3 4 Penetration Max . | . . . Secondary Targets . | . . . Shots Hit Robots 23 | . 11 12 Core Hits 14 | . 6 8 Critical Kills . | . . . Critical Parts Destroyed . | . . . Critical Strikes 1 | . 1 . Corrupt 1 | . 1 . Melee Attacks . | . . . Impact . | . . . Slashing . | . . . Piercing . | . . . Sneak Attacks . | . . . Combat Hostiles . | . . . Follow-up Attacks . | . . . Damage Inflicted 423 | . 192 231 Guns 279 | . 147 132 Cannons . | . . . Explosions 140 | . 41 99 Melee . | . . . Ramming 4 | . 4 . Kinetic 138 | . 46 92 Thermal 70 | . 41 29 Explosive 99 | . . 99 Electromagnetic 112 | . 101 11 Impact . | . . . Slashing . | . . . Piercing . | . . . Highest Corruption 2 | . . 2 Average Corruption 2 | . . 2 Corruption Purged . | . . . Corruption Blocked . | . . . Effects 1 | . . 1 Message Errors 1 | . . 1 Overload Shots . | . . . Overflow Damage 1 | . 1 . Projectiles . | . . . Explosions 1 | . 1 . Melee . | . . . Knockbacks . | . . . Impact . | . . . Kinetic . | . . . Secondary . | . . . Self-Inflicted Damage 40 | . 40 . Shots 1 | . 1 . Rammed . | . . . Targets Rammed 1 | . 1 . Kicked 1 | . 1 . Crushed . | . . . Highest Temperature 51 | . 51 . Average Temperature 22 | . 22 . Received Heat Transfer 111 | . 66 45 Siege Activations . | . . . Robots Corrupted . | . . . Combat Hostiles . | . . . Parts Fried . | . . . Impact Corruptions . | . . . Robots Melted . | . . . Combat Hostiles . | . . . Parts Melted . | . . . Heat Transferred 124 | . 50 74 Parts Sabotaged . | . . . Parts Stolen . | . . . Parts Stripped . | . . . Power Chain Reactions 1 | . 1 . Missiles Intercepted . | . . . Alert | -11 -10 -9 ------- Run | Jun Mat Mat Peak Influence 218 | . 141 218 Initial 59 | . . 59 Average 86 | . 82 131 Maximum Alert Level 1 | . . 1 Low Security (%) 97 | 100 100 91 Level 1 2 | . . 8 Level 2 . | . . . Level 3 . | . . . Level 4 . | . . . Level 5 . | . . . High Security . | . . . Max Security . | . . . Squads Dispatched . | . . . Investigation . | . . . Extermination . | . . . Reinforcement . | . . . Assault . | . . . Garrison . | . . . Intercept . | . . . Searches Triggered . | . . . Construction Impeded . | . . . Haulers Reinforced . | . . . Active Scanning Responses . | . . . Cargo Convoy Interrupts . | . . . Stealth | -11 -10 -9 --------- Run | Jun Mat Mat Distress Signals . | . . . Communications Jammed . | . . . Distress Signals . | . . . Times Spotted 21 | . 8 13 Peak Tracking Total 7 | . 6 7 Tactical Retreats 2 | . 1 1 Traps | -11 -10 -9 ------- Run | Jun Mat Mat Traps Triggered 1 | . . 1 Indirectly . | . . . Trap Hack Attempts . | . . . Triggered . | . . . Disarmed . | . . . Reprogrammed . | . . . Reused . | . . . Traps Extracted . | . . . Installed . | . . . Triggered . | . . . Machines | -11 -10 -9 ---------- Run | Jun Mat Mat Machines Disabled 1 | . 1 . Max in Single Turn 1 | . 1 . Machines Repaired . | . . . Machines Sabotaged . | . . . Overloaded Fab Kills . | . . . Hacking | -11 -10 -9 --------- Run | Jun Mat Mat Machines Accessed 5 | . 4 1 Terminals 5 | . 4 1 Fabricators . | . . . Repair Stations . | . . . Recycling Units . | . . . Scanalyzers . | . . . Garrison Access . | . . . Total Hacks 10 | . 8 2 Successful 6 | . 4 2 Failed 4 | . 4 . Catastrophic . | . . . Database Lockouts . | . . . Manual . | . . . Terminals 10 | . 8 2 Fabricators . | . . . Repair Stations . | . . . Recycling Units . | . . . Scanalyzers . | . . . Garrison Access . | . . . Terminal Hacks 6 | . 4 2 Record 1 | . 1 . Emergency Access Points 2 | . 1 1 Terminal Index 1 | . 1 . Locate Traps 1 | . . 1 Dispatch Records 1 | . 1 . Fabricator Hacks . | . . . Repair Station Hacks . | . . . Recycling Unit Hacks . | . . . Scanalyzer . | . . . Garrison Access Hacks . | . . . Unauthorized Hacks . | . . . Terminals . | . . . Fabricators . | . . . Repair Stations . | . . . Recycling Units . | . . . Scanalyzers . | . . . Garrison Access . | . . . Data Cores Recovered . | . . . Used . | . . . Hacking Detections 1 | . . 1 Full Trace Events . | . . . Feedback Events . | . . . Feedback Blocked . | . . . Robot Schematics Acquired . | . . . Robots Built . | . . . Authchips . | . . . Time . | . . . Total Robot Build Rating . | . . . Part Schematics Acquired . | . . . Parts Built . | . . . Authchips . | . . . Time . | . . . Total Part Build Rating . | . . . Parts Repaired . | . . . Time . | . . . Parts Recycled . | . . . Recycled Matter . | . . . Retrieved Matter . | . . . Retrieved Components . | . . . Parts Scanalyzed . | . . . Part Schematics Acquired . | . . . Parts Damaged . | . . . Bothacking | -11 -10 -9 ------------ Run | Jun Mat Mat Used RIF Installer . | . . . Robots Hacked . | . . . Non-combat . | . . . Combat . | . . . Robot Hacks Applied . | . . . Relay Couplers Released . | . . . Fabnet Peak Effective % . | . . . Robots Rewired . | . . . Allies Hacked . | . . . Hacks Repelled . | . . . Allies | -11 -10 -9 -------- Run | Jun Mat Mat Total Allies . | . . . Largest Group . | . . . Highest-Rated Group . | . . . Highest-Rated Ally . | . . . Total Orders . | . . . Ally Attacks . | . . . Total Damage . | . . . Kills . | . . . Allies Corrupted . | . . . Allies Melted . | . . . Intel | -11 -10 -9 ------- Run | Jun Mat Mat Robot Analysis Total . | . . . Derelict Logs Recovered . | . . . Drone Launches . | . . . Drone Recoveries . | . . . Exploration | -11 -10 -9 ------------- Run | Jun Mat Mat Turns Passed 556 | 60 347 149 Spaces Moved 380 | 42 246 92 Core 2 | 2 . . Treads . | . . . Legs 378 | 40 246 92 Wheels . | . . . Hover . | . . . Flight . | . . . Fastest Speed 50 | 50 120 120 Average Speed 119 | 116 120 120 Slowest Speed 120 | 120 120 120 Overloaded Moves . | . . . Propulsion Burnouts . | . . . Robots Hopped . | . . . Cave-ins Triggered . | . . . Exploration Rate (%) 24 | 4 54 16 Regions Visited 2 Branch Regions . Pre-discovered Areas . | . . . Known Exits Taken . | . . . Unknown Exits Taken 2 | 1 1 . Scrap Searched . | . . . Spaces Dug . | . . . Terrain Destroyed 25 | . 2 23 Melee . | . . . Projectile . | . . . AOE 25 | . 2 23 Terrain Rammed . | . . . Walls Destroyed . | . . . Machines Disabled . | . . . Actions | -11 -10 -9 --------- Run | Jun Mat Mat Total 430 | 49 274 107 Wait 7 | . 7 . Move 378 | 41 245 92 Hop . | . . . Pick Up 9 | 1 7 1 Fast Attach 7 | 6 1 . Attach 2 | . 1 1 Detach . | . . . Swap 2 | 1 . 1 Drop . | . . . Fire 24 | . 12 12 Melee . | . . . Ram . | . . . Kick 1 | . 1 . Crush . | . . . Escape Stasis . | . . . Rewire . | . . . Trap . | . . . Miscellaneous . | . . . Route ------- -11/Junkyard -10/Materials (discovered 3 exits: *Mat x3) -9/Materials History --------- Turn | Location | Event 29 | -11/Junkyard | Discovered new exit (range 16) 61 | -11/Junkyard | Entered Materials 196 | -10/Materials | Discovered new exit (range 15) 304 | -10/Materials | Build established: Mutant 353 | -10/Materials | Discovered new exit (range 16) 396 | -10/Materials | Discovered new exit (range 9) 408 | -10/Materials | Entered another Materials area 408 | -9/Materials | Evolved 2 slots: Propulsion x2 557 | -9/Materials | Self-destructed Last Messages --------------- 00541_ The floor emits a surge of raw power. 00541_ System corrupted (+2). 00542_ Connecting with Terminal... 00542_ Current location identified: Materials >>Traps(Locate) Found 5 traps in 1 array: 5x Shock Trap Map updated. >>Access(Emergency) Found 1 emergency access door: (46,63) Map updated. 00544_ T-07 Excavator is excavating. 00547_ C-30 ARC bursts open, deploying its payload. 00547_ S-10 Pest unfolds itself. 00548_ K-01 Serf collects debris. 00550_ 0#NYMFWG5BIZCW:6U 1,NUM YTI 00554_ S-10 Pest destroyed. 00554_ Ion Engine destroyed. 00556_ S-10 Pest destroyed. Map ----- +----------------------------------------------------+ | ?????????????????????????????????????????????????? | | ?????????????????????????????????????????????????? | | ?????????????????????????????????????????????????? | | ?????????????????????????????????????????????????? | | ?????????????????????????????????????????????????? | | ?????????????????????????????????????????????????? | | ?????????????????????????????????????????????????? | | ?????????????????????????????????????????????????? | | ?????????????????????????????????????????????????? | | ?????????????????????????????????????????????????? | | ?????????????????????????????????????????????????? | | ?????????????????????????????????????#???????????? | | ?????????????????#?????###+###????? #????? #????? | | ????????????????? ##### ###### ###### ?????? | | ?????????????????? ^ ^%" ???????? | | ?????????????????? ^ ^ " ????????? | | ????????????????? "" """ ?????????? | | ???????????????????????# "T ^ """ #??????????? | | ???????????????????????# "" """ #?###??????? | | ???????????????????????# # ???????? | | ???????????????????????# s # "????????? | | ??????????????????###### + ?????????? | | ???????????????+ s[ #??????????? | | ?????????????????#########/##### #??????????? | | ?????????????????????# [== # ##??????????? | | ?????????????????????# @% # #???????????? | | ?????????????????????# [[[ # #???????????? | | ?????????????????????# [[ # #???????????? | | ????????????????????#Y [[ # #???????????? | | ????????????????????## # #???????????? | | ????????????+????????#! # #???????????? | | ?????????????????????# # #???????????? | | ?????????????????????########### #???????????? | | ???????????????????????????????# ######??????? | | ???????????????????????????????# # ??????? | | ???????????????????????????????# # """ ?????? | | ?????????????????????########### # """""?????? | | ???????????????????? # """"" ????? | | ???????????????????? # """"" #?? | | ??????????????????? + """ #?? | | ??????????????????? # #?? | | ??????????????????? # #?? | | ?????????????????????############ ############?? | | ??????????????????????# ! # # ???????????? | | ??????????????????????# # # ???????????? | | ??????????????????????# " +????????????? | | ???????????????????#### # #????????????? | | ????????????????? # # #????????????? | | ???????? #### !! # #????????????? | | ???????? !%=[%!! # #????????????? | +----------------------------------------------------+ Best States ------------- Heat Dissipation 38 Energy Generation 10 Energy Capacity 250 Matter Stores 241 Matter Capacity 300 Sight Range 16 Terrain Scan Density 10 Evasion (%) 55 Item Schematics ----------------- None Robot Schematics ------------------ None Fabricated ------------ Nothing Alien Tech Used ----------------- None Achievements -------------- None Challenges ------------ None Game ------ Seed BattleEfficiencyBooster Manual? 0 Play Time 00:09:21 Cumulative 13.8 hours Start 2023.11.05 @ 20:57:05 End 2023.11.05 @ 21:04:45 Sessions 1 Manual Loads 0 Difficulty Rogue Special Mode None Game No. 40 Rogue 40 Adventurer 0 Explorer 0 Win Type - Total 0 Types 0/0/0/0/0/0/0/0/0 Lore% 10 Gallery% 20 Achievement% 10 Wizard Run 0 Options --------- ASCII 0 Keyboard 0 Movement Mouse Keybinds 0 Fullscreen 1 Font 18/SmallcapsGlow Map View 76x50 Tactical HUD 1 Map Filters NONE Filters NONE Steam 1 RUN: 9b8a7c4c-5336-4e5f-ab56-f0000a17ca6f